{"text_format":"3","workbook":"xlsx","n_sheets":1,"sheets":["Bid Form Pricing Sheet"],"not_rendered":{"defined_names":3},"read":"whole","date_system":"1900"}

{"sheet":"Bid Form Pricing Sheet","index":0,"n_rows":26,"n_cols":10,"rows_kept":26,"merged":[[0,3,0,9],[1,3,1,9],[2,3,2,9],[3,3,3,9],[25,3,25,8]]}
["PRICE SCHEDULE",null,null,"PRICE SCHEDULE"]
["Lee Hwy (Route 29) at Glebe Rd (Route 120) Intersection Improvements Project ",null,null,"Rehab Spout Run Deep Sewer\nFrom Spout Run Parkway (North of N Courthouse Rd cul-de-sac)\nthrough under Langston Blvd (Route 29) & I-66 to N. Nash St"]
["All Unit Prices on the Price Shedule shall reflect and be inclusive of all costs, including but not limited to:  tasks, labor, supplies, tools, equipment, transportation, clearing and grubbing, demolition, material provisions and installations, materials testing, disposals, incidentals, and all things necessary to perform the work as set forth in accordance with project plans and specifications and in compliance with all Arlington County and VDOT Standards and Specifications.",null,null,"All Unit Prices on the Price Shedule shall reflect and be inclusive of all costs, including but not limited to:  tasks, labor, supplies, tools, equipment, transportation, clearing and grubbing, demolition, material provisions and installations, materials testing, disposals, incidentals, and all things necessary to perform the work as set forth in accordance with project plans and specifications and in compliance with all Arlington County, National Park Service (NPS), and VDOT Standards and Specifications."]
[{"$nulls":3},"PLEASE PROVIDE PRICES IN ALL CELLS HIGHLIGHTED IN BLUE.  BIDDERS SHALL INCLUDE A BID PRICE FOR ALL ITEMS.  FAILURE TO PROVIDE A PRICE FOR ALL ITEMS, OR ANY MODIFICATIONS OR ADDITIONS TO THE BID FORM PRICING SHEET MAY RESULT IN BID REJECTION."]
[{"$nulls":3},"ITEM","Specification Reference","DESCRIPTION","QTY","UNIT","UNIT PRICE","TOTAL"]
["02200","C1","13",1,"01550","Mobilization / Demobilization - General",1,"LS",null,{"$f":"I6*G6","v":0}]
["02200","C1","13",{"$f":"D6+1","v":2},"01550","NPS Temporary Site Access",1,"LS",null,{"$f":"I7*G7","v":0}]
["02750","C2","2",{"$f":"D7+1","v":3},"01550","Site Restoration in accordance with VDOT, NPS, and/or Arlington County Stds & Specs as applicable",1,"LS",null,0]
["02750","C2","4",{"$f":"D8+1","v":4},"01550","Temporary Erosion & Sediment Control",1,"LS",null,0]
["02750","C2","6",5,"13180","Maintenance & Control of Traffic",1,"LS",null,0]
["02750","C2","7",6,"01200","Clearing and Grubbing",1,"LS",null,0]
["02611","C2","11",7,"02100","Tree Removal: Class A (6-inch to 12-inch diameter trees)",30,"EA",null,0]
["02611","C2","18",8,"02100","Tree Removal: Class B (13-inch to 18-inch diameter trees)",6,"EA",null,0]
["02611","C2","19",9,"02100","Tree Removal: Class C (19-inch to 24-inch diameter trees)",8,"EA",null,0]
["03100","C2","20",10,"02100","Tree Removal: Class D (25-inch to 30-inch diameter trees)",3,"EA",null,0]
["03100","C2","22",11,"02100","Tree Removal: Class E (31-inch to 36-inch diameter trees)",4,"EA",null,0]
["03100","C2","23",12,"02100","Tree Removal: Class F (37-inch to 42-inch diameter trees)",1,"EA",null,0]
[{"$nulls":3},13,"02100","Tree Removal: Class G (43-inch to 48-inch diameter trees)",1,"EA",null,{"$f":"I18*G18","v":0}]
[{"$nulls":3},14,"02100","Tree Removal: Class H (49-inch and larger diameter trees)",1,"EA",null,{"$f":"I19*G19","v":0}]
["02600","C3","1",{"$f":"D19+1","v":15},"331210","Temporary Bypass Pumping and Piping",1,"LS",null,0]
["02600","C3","3",{"$f":"D20+1","v":16},"02500","Locate and Reinstate MH 741",1,"LS",null,{"$f":"I21*G21","v":0}]
["02600","C3","3",17,"331113.26","Infiltration Control - Grouting with Packer",10,"EA",null,0]
["02600","C3","7",18,"330130.41","Heavy Cleaning (only when approved)",500,"LF",null,{"$f":"I23*G23","v":0}]
["02600","C3","7",19,"330130.72","CIPP Installation (approx. LF)",3400,"LF",null,{"$f":"I24*G24","v":0}]
[{"$nulls":3},20,"N/A","NPS Special Use Permit",1,"LS",null,{"$f":"I25*G25","v":0}]
[{"$nulls":3},"TOTAL BID PRICE = ",{"$nulls":5},{"$f":" SUM(J6:J25)","v":{"v":0,"d":"$0.00"}}]